[Event "33rd ECCC Open 2017"]
[Site "Antalya"]
[Date "2017.10.12"]
[Round "5"]
[White "Lavendelis, Egons"]
[Black "Salo, Heikki"]
[Result "1/2-1/2"]
[ECO "C42"]
[WhiteElo "2274"]
[BlackElo "2228"]
[Annotator "NA"]
[PlyCount "120"]
[EventType "team-tourn"]
[EventCountry "TUR"]
[SourceTitle "playchess.com"]
[Source "ChessBase"]
[SourceQuality "1"]
[WhiteTeam "Riga"]
[BlackTeam "Etela-Vantaan"]
[TimeControl "40/5400+30:1800+30"]

1. e4 {[%emt 0:00:30]} e5 {[%emt 0:01:00]} 2. Nf3 {[%emt 0:00:30]} Nf6 {[%emt 0:00:30]} 3. Nxe5 {[%emt 0:00:30]} d6 {[%emt 0:00:30]} 4. Nf3 {[%emt 0:00:30]} Nxe4 {[%emt 0:00:30]} 5. Bd3 {[%emt 0:00:30]} Nf6 {[%emt 0:00:30]} 6. O-O {[%emt 0:00:30]} Be7 {[%emt 0:00:30]} 7. h3 {[%emt 0:00:30]} O-O {[%emt 0:00:30]} 8. c3 {[%emt 0:00:30] C42: Petroff Defence: 3 Nxe5 and unusual White 3rd moves} b6 {[%emt 0:00:00]} 9. Bc2 {[%emt 0:00:00]} Bb7 {[%emt 0:00:00]} 10. d4 {[%emt 0:00:00]} Nbd7 {[%emt 0:01:30]} 11. Re1 {[%emt 0:00:30]} (11. Nbd2 Re8 12. Nc4 a5 13. Ne3 g6 {0-1 (68) Short,N (2698)-Wang,Y (2691) Poikovsky 2012}) 11... Re8 {[%emt 0:03:30]} 12. Bg5 {[%emt 0:04:30]} Nf8 {[%emt 0:04:30]} 13. Nbd2 {[%emt 0:09:30]} N6d7 $146 {[%emt 0:38:30]} ({Predecessor:} 13... Ng6 14. Ba4 Nd7 15. Be3 a6 {0-1 (53) Carlsen,M (2567)-Lagno,K (2472) Lausanne 2004}) 14. Be3 {[%emt 0:05:30]} a6 {[%emt 0:07:30]} 15. Nf1 {[%emt 0:07:30]} Bf6 {[%emt 0:13:30]} 16. N3h2 {[%emt 0:07:30]} b5 {[%emt 0:04:30]} 17. Ng4 {[%emt 0:05:30]} Bh4 {[%emt 0:01:30]} 18. b3 {[%emt 0:06:30]} Nf6 {[%emt 0:03:26]} 19. g3 {[%emt 0:02:30]} Nxg4 {[%emt 0:00:30]} 20. Qxg4 {[%emt 0:00:00]} Bf6 {[%emt 0:00:00]} 21. Kh2 {[%emt 0:01:00]} Qd7 {[%emt 0:00:31]} 22. Qxd7 {[%emt 0:01:30]} Nxd7 {[%emt 0:00:02]} 23. Rac1 {[%emt 0:06:30]} Nb6 {[%emt 0:00:32]} 24. c4 {[%emt 0:01:30]} b4 {[%emt 0:14:21]} 25. Nd2 {[%emt 0:17:30]} g6 {[%emt 0:00:16]} 26. d5 {[%emt 0:00:30]} Nd7 {[%emt 0:00:47]} 27. Ne4 {[%emt 0:02:30]} Bg7 {[%emt 0:00:24]} 28. f4 {[%emt 0:00:06]} a5 {[%emt 0:01:10]} 29. g4 {[%emt 0:05:16]} Re7 {[%emt 0:00:29]} 30. Bf2 {[%emt 0:01:09]} Rae8 {[%emt 0:01:42]} 31. Ng3 {[%emt 0:00:59]} Bc3 {[%emt 0:00:14]} 32. Rxe7 {[%emt 0:00:39]} Rxe7 {[%emt 0:00:01]} 33. Ne4 {[%emt 0:02:24]} Bb2 {[%emt 0:00:13]} 34. Rb1 {[%emt 0:01:53]} Bg7 {[%emt 0:00:14]} 35. Re1 {[%emt 0:00:48]} Nf6 {[%emt 0:01:14]} 36. Bh4 {[%emt 0:02:59]} Kf8 {[%emt 0:00:44]} 37. f5 {[%emt 0:00:12]} gxf5 {[%emt 0:00:29]} 38. Nxf6 {[%emt 0:01:07]} Bxf6 {[%emt 0:00:44]} 39. Rxe7 {[%emt 0:00:20]} Bxe7 {[%emt 0:00:51]} 40. Bxe7+ {[%emt 0:00:40]} Kxe7 {[%emt 0:30:30]} 41. Bxf5 {[%emt 0:00:28]} h6 {[%emt 0:00:00]} 42. Kg3 {[%emt 0:02:30]} Kf6 {[%emt 0:00:00]} 43. Kf4 {[%emt 0:01:30]} c6 {[%emt 0:00:00] [#]} 44. dxc6 {[%emt 0:04:30]} (44. c5 $1 $16 {[%cal Rc5d6]} Ke7 45. dxc6 Bxc6 46. cxd6+ Kxd6 47. Bd3) 44... Bxc6 {[%emt 0:00:00]} 45. h4 {[%emt 0:00:00]} Bb7 {[%emt 0:00:00]} 46. g5+ {[%emt 0:00:00]} hxg5+ {[%emt 0:00:00]} 47. hxg5+ {[%emt 0:00:30]} Ke7 {[%emt 0:00:00]} 48. Ke3 $11 {[%emt 0:00:30]} Ba6 {[%emt 0:00:16]} 49. Kd4 {[%emt 0:00:30]} Bb7 {[%emt 0:00:55]} 50. c5 {[%emt 0:05:30]} Bc6 {[%emt 0:01:33]} 51. Bh7 {[%emt 0:02:30]} Bf3 {[%emt 0:02:33]} 52. Bg8 {[%emt 0:00:30]} dxc5+ {[%emt 0:00:00]} 53. Kxc5 {[%emt 0:00:30]} Be4 {[%emt 0:00:00]} 54. Kb5 {[%emt 0:00:30]} Bb1 {[%emt 0:01:28]} 55. Kxa5 {[%emt 0:00:00]} Bxa2 {[%emt 0:00:10]} 56. Kxb4 {[%emt 0:00:00]} Bb1 {[%emt 0:00:00]} 57. Kc4 {[%emt 0:00:30]} Kf8 {[%emt 0:00:00]} 58. Bxf7 {[%emt 0:00:30]} Kxf7 {[%emt 0:00:17]} 59. b4 {[%emt 0:00:30]} Be4 {[%emt 0:00:16]} 60. Kd4 {[%emt 0:00:00]} Bb7 {[%emt 0:00:00]} 1/2-1/2

[Event "33rd ECCC Open 2017"]
[Site "Antalya"]
[Date "2017.10.12"]
[Round "5"]
[White "Johannesson, Oliver"]
[Black "Longson, Alexander"]
[Result "1/2-1/2"]
[ECO "D29"]
[WhiteElo "2273"]
[BlackElo "2317"]
[Annotator "NA"]
[PlyCount "91"]
[EventType "team-tourn"]
[EventCountry "TUR"]
[SourceTitle "playchess.com"]
[Source "ChessBase"]
[SourceQuality "1"]
[WhiteTeam "Fjolnir"]
[BlackTeam "3CS Oldham"]
[TimeControl "40/5400+30:1800+30"]

1. d4 d5 2. c4 dxc4 3. Nf3 Nf6 4. e3 e6 5. Bxc4 c5 6. O-O a6 7. Qe2 b5 {[%emt 0:02:00]} 8. Bb3 {[%emt 0:04:00]} Bb7 {[%emt 0:00:00]} 9. Rd1 {[%emt 0:01:30]} Nbd7 {[%emt 0:00:00]} 10. a4 {[%emt 0:01:30]} b4 {[%emt 0:05:30]} 11. a5 {[%emt 0:02:30]} Be7 {[%emt 0:06:30]} 12. Nbd2 {[%emt 0:01:30]} O-O {[%emt 0:03:30]} 13. Nc4 {[%emt 0:12:30]} Qc7 {[%emt 0:06:30]} 14. Bd2 {[%emt 0:11:30] D29: Queen's Gambit Accepted: Classical main line: 7 Qe2 with early ...Nbd7} Bd5 {[%emt 0:00:30]} 15. Rac1 {[%emt 0:01:30]} Qb7 {[%emt 0:01:30]} 16. Be1 {[%emt 0:03:30]} Rfc8 {[%emt 0:13:30] [#]} 17. Ncd2 $146 {[%emt 0:05:30]} ({Predecessor:} 17. Ba4 Rc7 18. Nce5 Nxe5 19. Nxe5 Rac8 20. Nf3 cxd4 21. Rxc7 Qxc7 22. Qxa6 {0-1 (40) Degerman,L (2503)-Jonkman,H (2410) Andorra 2001}) 17... Bc6 {[%emt 0:04:30]} 18. Bc4 {[%emt 0:06:30]} cxd4 {[%emt 0:03:30]} 19. Nxd4 {[%emt 0:01:30]} (19. exd4 $11 Nd5 20. g3) 19... Bxg2 {[%emt 0:04:30]} 20. Bxa6 {[%emt 0:03:30]} Rxa6 {[%emt 0:02:30]} 21. Rxc8+ {[%emt 0:00:30]} Qxc8 {[%emt 0:00:30]} 22. Kxg2 {[%emt 0:00:00]} Rxa5 {[%emt 0:01:30]} 23. N2b3 {[%emt 0:03:00]} Qb7+ {[%emt 0:04:30]} 24. f3 {[%emt 0:03:30]} Ra2 {[%emt 0:05:30]} 25. Rc1 {[%emt 0:03:30]} Nd5 {[%emt 0:02:30]} 26. Rc2 {[%emt 0:02:30]} g6 {[%emt 0:05:30]} 27. Bf2 {[%emt 0:01:30]} Ne5 {[%emt 0:04:30]} 28. Kf1 {[%emt 0:04:30]} Qa6 {[%emt 0:12:01]} 29. Qxa6 {[%emt 0:01:30]} Rxa6 {[%emt 0:00:04]} 30. Ke2 {[%emt 0:00:00]} Ra2 {[%emt 0:05:44]} 31. Bg3 {[%emt 0:01:00]} Bf6 {[%emt 0:02:43]} 32. Nc5 {[%emt 0:00:30]} h6 {[%emt 0:02:14]} 33. e4 {[%emt 0:07:30]} Nb6 {[%emt 0:00:43]} 34. b3 {[%emt 0:00:30]} Ra1 {[%emt 0:01:46]} 35. Be1 {[%emt 0:04:25]} Nbd7 {[%emt 0:01:50]} 36. Na4 {[%emt 0:03:57]} g5 {[%emt 0:01:15]} 37. Bxb4 {[%emt 0:03:46]} Ng6 {[%emt 0:00:18]} 38. Bc3 {[%emt 0:03:01]} Nf4+ {[%emt 0:00:26]} 39. Ke3 {[%emt 0:00:21]} Rb1 {[%emt 0:00:56]} 40. b4 {[%emt 0:03:37]} Ne5 {[%emt 0:01:30]} 41. Nb2 {[%emt 0:03:23]} Nd7 {[%emt 0:07:30]} 42. Nc4 {[%emt 0:05:30]} Rd1 {[%emt 0:04:27]} 43. Nb2 {[%emt 0:04:30]} Rb1 $11 {[%emt 0:00:30]} 44. Nc4 {[%emt 0:07:55]} Rd1 {[%emt 0:01:54]} 45. Bd2 {[%emt 0:05:31]} Rh1 {[%emt 0:02:56]} 46. Bc3 {[%emt 0:01:41]} 1/2-1/2

[Event "33rd ECCC Open 2017"]
[Site "Antalya"]
[Date "2017.10.12"]
[Round "5"]
[White "Thorarinsson, Pall A"]
[Black "Makolli, Perparim"]
[Result "1-0"]
[ECO "A33"]
[WhiteElo "2273"]
[BlackElo "2333"]
[Annotator "NA"]
[PlyCount "55"]
[EventType "team-tourn"]
[EventCountry "TUR"]
[SourceTitle "playchess.com"]
[Source "ChessBase"]
[SourceQuality "1"]
[WhiteTeam "Viking"]
[BlackTeam "Hasan Pristina"]
[TimeControl "40/5400+30:1800+30"]

1. c4 {[%emt 0:00:30]} c5 {[%emt 0:05:00]} 2. Nf3 {[%emt 0:00:30]} Nc6 {[%emt 0:00:30]} 3. d4 {[%emt 0:03:30]} cxd4 {[%emt 0:02:30]} 4. Nxd4 {[%emt 0:00:00]} Nf6 {[%emt 0:00:00]} 5. Nc3 {[%emt 0:02:00]} e6 {[%emt 0:02:00]} 6. Ndb5 {[%emt 0:03:30]} d6 {[%emt 0:12:30]} 7. Bf4 {[%emt 0:09:30]} e5 {[%emt 0:03:30]} 8. Bg5 {[%emt 0:02:30]} a6 {[%emt 0:00:30]} 9. Bxf6 {[%emt 0:00:30]} gxf6 {[%emt 0:00:30]} 10. Na3 {[%emt 0:00:30] LiveBook: 61 Games} Be6 {[%emt 0:01:30] A33: Symmetrical English: 2 Nf3 Nf6 3 d4 cxd4 4 Nxd4 e6 5 Nc3 Nc6} (10... f5 11. Qd2 Be6 12. Rd1 Bg7 13. e3 O-O 14. Be2 Qa5 15. Nd5 Qxd2+ 16. Rxd2 e4 17. O-O Bxd5 18. cxd5 Ne5 {½-½ (35) Shimanov,A (2625)-Grigoryan,K (2595) Katowice 2014}) 11. g3 {[%emt 0:08:30]} Qb6 {[%emt 0:05:30]} 12. Qd2 {[%emt 0:04:30]} h5 {[%emt 0:06:30]} 13. Bg2 {[%emt 0:03:30]} f5 {[%emt 0:02:30]} (13... h4 $11) 14. Nd5 $146 {[%emt 0:09:30]} ({Predecessor:} 14. Bd5 Bh6 15. e3 Ke7 16. O-O-O Rad8 17. Bf3 e4 18. Bxh5 {½-½ (46) Ollek,K (1690)-Szczepaniec,S (2072) Rowy 2003}) 14... Bxd5 {[%emt 0:05:30]} 15. cxd5 {[%emt 0:00:30]} Nb8 {[%emt 0:12:30]} 16. Bh3 {[%emt 0:12:30]} h4 {[%emt 0:03:30]} 17. Rc1 {[%emt 0:05:30]} Nd7 {[%emt 0:03:30]} 18. Nc4 {[%emt 0:06:30]} Qa7 $18 {[%emt 0:08:30]} 19. Bxf5 {[%emt 0:08:26]} b5 {[%emt 0:02:30]} 20. Bxd7+ {[%emt 0:13:40]} Kxd7 {[%emt 0:00:30]} 21. Ne3 {[%emt 0:00:40]} hxg3 {[%emt 0:00:30]} 22. fxg3 {[%emt 0:00:00]} Bh6 {[%emt 0:01:30]} 23. Rc3 {[%emt 0:00:00]} f5 {[%emt 0:08:56]} 24. Qc2 {[%emt 0:01:08]} Bxe3 {[%emt 0:10:30]} 25. Qxf5+ {[%emt 0:00:06]} Ke7 {[%emt 0:00:23]} 26. Qe6+ {[%emt 0:00:39]} Kf8 {[%emt 0:00:08]} 27. Rf1+ {[%emt 0:00:23]} Kg7 {[%emt 0:00:17]} 28. Rxe3 {[%emt 0:00:53]} 1-0

[Event "33rd ECCC Open 2017"]
[Site "Antalya"]
[Date "2017.10.12"]
[Round "5"]
[White "Apaydin, Fethi"]
[Black "Nalbant, Tuna Onat"]
[Result "1/2-1/2"]
[ECO "B25"]
[WhiteElo "2262"]
[BlackElo "2034"]
[Annotator "NA"]
[PlyCount "120"]
[EventType "team-tourn"]
[EventCountry "TUR"]
[SourceTitle "playchess.com"]
[Source "ChessBase"]
[SourceQuality "1"]
[WhiteTeam "Besiktas"]
[BlackTeam "Karaman"]
[TimeControl "40/5400+30:1800+30"]

1. e4 {[%emt 0:00:30]} c5 {[%emt 0:01:00]} 2. Nc3 {[%emt 0:00:30]} Nc6 {[%emt 0:00:30]} 3. g3 {[%emt 0:00:30]} g6 {[%emt 0:00:30]} 4. Bg2 {[%emt 0:00:30]} Bg7 {[%emt 0:00:30]} 5. d3 {[%emt 0:00:30]} d6 {[%emt 0:00:30]} 6. f4 {[%emt 0:00:30]} e6 {[%emt 0:00:30]} 7. Nf3 {[%emt 0:00:30]} Nge7 {[%emt 0:00:30]} 8. Be3 {[%emt 0:00:30]} Nd4 {[%emt 0:00:30]} 9. O-O {[%emt 0:00:30]} O-O {[%emt 0:00:30]} 10. Rb1 {[%emt 0:00:30]} Rb8 {[%emt 0:00:30]} 11. Ne2 {[%emt 0:00:00]} Nxf3+ {[%emt 0:00:00]} 12. Bxf3 {[%emt 0:00:00]} b6 {[%emt 0:00:00]} 13. c4 {[%emt 0:20:30] B25: Closed Sicilian: 3 g3, lines without early Be3} d5 {[%emt 0:16:30]} 14. a3 {[%emt 0:05:30]} Bb7 {[%emt 0:08:30]} 15. Qc2 $146 {[%emt 0:06:30]} ({Predecessor:} 15. b4 d4 16. Bd2 Qd7 17. g4 f5 18. Ng3 Bc6 19. b5 Bb7 20. Qe2 Rbe8 {½-½ (20) Bastian,H (2375)-Kavalek,L (2560) Hannover 1983}) 15... d4 {[%emt 0:10:30]} 16. Bd2 {[%emt 0:10:30]} f5 {[%emt 0:01:30]} 17. e5 {[%emt 0:00:30]} Bxf3 {[%emt 0:10:30]} 18. Rxf3 {[%emt 0:00:30]} Qd7 {[%emt 0:00:00]} 19. h4 {[%emt 0:15:30]} b5 {[%emt 0:07:00]} 20. b4 {[%emt 0:09:30]} bxc4 {[%emt 0:09:30]} 21. dxc4 {[%emt 0:01:30]} Qc6 {[%emt 0:04:30]} 22. Rd3 {[%emt 0:07:28]} Rfd8 {[%emt 0:10:01]} 23. Be1 {[%emt 0:09:29]} Qe4 {[%emt 0:01:01]} 24. Bf2 {[%emt 0:03:26]} a5 {[%emt 0:10:06]} 25. b5 {[%emt 0:00:30]} a4 {[%emt 0:00:37]} 26. Re1 {[%emt 0:01:57]} Qa8 {[%emt 0:00:11]} 27. Nc1 {[%emt 0:00:22]} Nc8 {[%emt 0:00:51]} 28. Rdd1 {[%emt 0:01:07]} Nb6 {[%emt 0:00:40]} 29. Nd3 {[%emt 0:00:15]} Bf8 {[%emt 0:00:00]} 30. Rc1 {[%emt 0:00:34]} Qf3 {[%emt 0:01:11]} 31. Rf1 {[%emt 0:00:53]} h5 {[%emt 0:01:09]} 32. Be1 {[%emt 0:01:22]} Qa8 {[%emt 0:01:20]} 33. Bd2 {[%emt 0:00:23]} Rd7 {[%emt 0:01:17]} 34. Qd1 {[%emt 0:00:38]} Ra7 {[%emt 0:00:16]} 35. Qe2 {[%emt 0:00:39]} Qe4 {[%emt 0:00:30]} 36. Rfe1 {[%emt 0:01:23]} Qxe2 {[%emt 0:00:52]} 37. Rxe2 {[%emt 0:00:04]} Be7 {[%emt 0:00:27]} 38. Kg2 {[%emt 0:00:25]} Kf7 {[%emt 0:00:35]} 39. Nb2 {[%emt 0:00:15]} Bf8 {[%emt 0:01:21]} 40. Ree1 {[%emt 0:00:00]} Ke8 {[%emt 0:31:04]} 41. Red1 {[%emt 0:01:50]} Be7 {[%emt 0:00:00]} 42. Be1 {[%emt 0:00:30]} Rd8 {[%emt 0:00:00]} 43. Nd3 {[%emt 0:00:30]} Bf8 {[%emt 0:00:00]} 44. Bf2 {[%emt 0:00:30]} Rc7 {[%emt 0:00:00]} 45. Ne1 {[%emt 0:00:30]} Be7 {[%emt 0:00:00]} 46. Nf3 {[%emt 0:00:00]} Rdc8 {[%emt 0:00:00]} 47. Rc2 {[%emt 0:01:00]} Kf8 {[%emt 0:00:00]} 48. Be1 {[%emt 0:02:30]} Ra7 {[%emt 0:00:00]} 49. Kf1 {[%emt 0:00:30]} Ke8 {[%emt 0:00:00]} 50. Ke2 {[%emt 0:00:30]} Kf8 {[%emt 0:00:00]} 51. Kd3 {[%emt 0:00:30]} Ke8 {[%emt 0:00:00]} 52. Bd2 {[%emt 0:00:30]} Kf8 {[%emt 0:00:00]} 53. Be1 {[%emt 0:00:30]} Ke8 {[%emt 0:00:00]} 54. Kd2 {[%emt 0:00:30]} Kf8 {[%emt 0:00:00]} 55. Kc1 {[%emt 0:00:00]} Ke8 {[%emt 0:00:00]} 56. Kb2 {[%emt 0:01:00]} Kf8 {[%emt 0:00:00]} 57. Ka2 {[%emt 0:00:00]} Ke8 {[%emt 0:00:00]} 58. Rdc1 $14 {[%emt 0:01:00]} Kf7 {[%emt 0:00:00]} 59. Bf2 {[%emt 0:02:30]} Rac7 {[%emt 0:00:00]} 60. Rd1 {[%emt 0:04:30]} Rd7 {[%emt 0:00:00]} 1/2-1/2

[Event "33rd ECCC Open 2017"]
[Site "Antalya"]
[Date "2017.10.12"]
[Round "5"]
[White "Aleksic, Nenad C"]
[Black "Kristensen, Kaare Hove"]
[Result "0-1"]
[ECO "D00"]
[WhiteElo "2261"]
[BlackElo "2331"]
[Annotator "NA"]
[PlyCount "46"]
[EventType "team-tourn"]
[EventCountry "TUR"]
[SourceTitle "playchess.com"]
[Source "ChessBase"]
[SourceQuality "1"]
[WhiteTeam "Elektroprivreda"]
[BlackTeam "Nordkalotten"]
[TimeControl "40/5400+30:1800+30"]

1. Nf3 {[%emt 0:00:30]} d5 {[%emt 0:01:00]} 2. d4 {[%emt 0:01:30]} Nf6 {[%emt 0:05:30]} 3. Bf4 {[%emt 0:00:30]} c5 {[%emt 0:02:30]} 4. e3 {[%emt 0:00:30]} Nc6 {[%emt 0:01:30]} 5. Be2 {[%emt 0:00:30]} g6 {[%emt 0:02:30]} 6. O-O {[%emt 0:02:30]} Bg7 {[%emt 0:00:00]} 7. Nc3 {[%emt 0:06:30]} cxd4 {[%emt 0:07:00]} 8. exd4 {[%emt 0:01:30]} O-O {[%emt 0:00:30]} 9. Ne5 {[%emt 0:05:30]} Nd7 {[%emt 0:09:30] D00: 1 d4 d5: Unusual lines} (9... Qb6 10. Nxc6 Qxc6 11. Be5 Bf5 12. Bd3 Bxd3 13. Qxd3 Rac8 14. a4 Ne4 15. Bxg7 Kxg7 16. Ra3 Nxc3 17. bxc3 b6 {0-1 (43) Bareev,E (2634)-Polgar,J (2680) Moscow 2009}) 10. Nxd5 {[%emt 0:08:30]} Ndxe5 {[%emt 0:01:30]} 11. dxe5 {[%emt 0:00:30]} Be6 {[%emt 0:04:30]} 12. Ne3 {[%emt 0:05:30]} Nxe5 {[%emt 0:01:30]} 13. c3 {[%emt 0:00:30]} Qc7 $146 {[%emt 0:16:30]} ({Predecessor:} 13... Qxd1 14. Rfxd1 Rfd8 15. b3 Nc6 16. Rac1 Rxd1+ 17. Nxd1 {0-1 (53) Alsheimer,C (2214)-Hilverda,A (2219) Bayern 2013}) 14. Qc2 {[%emt 0:07:30]} Qc6 {[%emt 0:02:30]} 15. Rfd1 {[%emt 0:03:30]} Rfd8 {[%emt 0:01:30]} 16. Rxd8+ {[%emt 0:05:30]} Rxd8 {[%emt 0:00:30]} 17. Rd1 {[%emt 0:00:00]} Rc8 {[%emt 0:01:30]} 18. b3 {[%emt 0:06:00]} b5 {[%emt 0:00:30]} 19. Qd2 {[%emt 0:01:30]} Qe4 {[%emt 0:12:30]} 20. Bxe5 {[%emt 0:08:30]} Qxe5 {[%emt 0:04:30]} 21. c4 {[%emt 0:00:30]} bxc4 {[%emt 0:03:30]} 22. Bxc4 {[%emt 0:00:00]} Bh6 {[%emt 0:03:21]} 23. Ng4 $19 {[%emt 0:03:00]} (23. Bxe6 $11 {und Weiss steht sicher.} Qxe6 24. Re1) 23... Bxg4 {[%emt 0:02:30]} 0-1

[Event "33rd ECCC Open 2017"]
[Site "Antalya"]
[Date "2017.10.12"]
[Round "5"]
[White "Dedebas, Emre Emin"]
[Black "Bryn, Askild"]
[Result "1/2-1/2"]
[ECO "D45"]
[WhiteElo "2253"]
[BlackElo "2060"]
[Annotator "NA"]
[PlyCount "112"]
[EventType "team-tourn"]
[EventCountry "TUR"]
[SourceTitle "playchess.com"]
[Source "ChessBase"]
[SourceQuality "1"]
[WhiteTeam "Oslo"]
[BlackTeam "Valerenga"]
[TimeControl "40/5400+30:1800+30"]

1. Nf3 {[%emt 0:00:30]} d5 {[%emt 0:01:00]} 2. d4 {[%emt 0:00:30]} Nf6 {[%emt 0:00:30]} 3. c4 {[%emt 0:00:30]} e6 {[%emt 0:00:30]} 4. Nc3 {[%emt 0:00:00]} c6 {[%emt 0:02:30]} 5. e3 {[%emt 0:00:00]} Be7 {[%emt 0:00:00]} 6. b3 {[%emt 0:06:30]} Qa5 {[%emt 0:04:00] D45: Semi-Slav: 5 e3} (6... O-O 7. Bd3 Nbd7 8. O-O b6 9. Qe2 Bb7 10. Rd1 Re8 11. e4 dxe4 12. Nxe4 c5 13. Bb2 Qc7 14. dxc5 bxc5 15. Rd2 Qf4 16. Rad1 Nxe4 17. Bxe4 Qxe4 18. Qxe4 Bxe4 19. Rxd7 {½-½ (59) Narciso Dublan,M (2525)-Zambrana,O (2458) La Massana 2008}) 7. Bd2 {[%emt 0:00:30]} Bb4 {[%emt 0:00:00]} 8. Qc2 {[%emt 0:01:30]} Nbd7 {[%emt 0:01:00]} 9. Bd3 {[%emt 0:02:30]} e5 $146 {[%emt 0:04:30]} ({Predecessor:} 9... O-O 10. O-O dxc4 11. bxc4 b5 12. a3 bxc4 13. Bxc4 Bxc3 14. Bxc3 Qh5 15. Be2 {1-0 (31) Ondrejat,M (2048)-Krasny,D (1897) Rakovnik 2011}) 10. dxe5 {[%emt 0:32:30]} dxc4 {[%emt 0:02:30]} 11. exf6 {[%emt 0:00:30]} cxd3 {[%emt 0:00:30]} 12. fxg7 {[%emt 0:01:30]} Rg8 {[%emt 0:01:30]} 13. Qxd3 {[%emt 0:00:00]} Rxg7 {[%emt 0:00:30]} 14. Ne4 {[%emt 0:11:00]} Nc5 {[%emt 0:12:30]} 15. Nxc5 {[%emt 0:14:30]} Bxd2+ {[%emt 0:00:00]} 16. Qxd2 {[%emt 0:04:30]} Qxc5 {[%emt 0:00:00]} 17. g3 {[%emt 0:00:30]} Bg4 {[%emt 0:04:30]} 18. Qd4 {[%emt 0:04:35]} Qxd4 {[%emt 0:01:30]} 19. Nxd4 {[%emt 0:00:05]} c5 {[%emt 0:01:30]} 20. h3 {[%emt 0:04:59]} Bd7 {[%emt 0:04:30]} 21. Nc2 {[%emt 0:01:20]} Bc6 {[%emt 0:05:30]} 22. O-O {[%emt 0:03:37]} f5 {[%emt 0:06:30]} 23. Rfd1 {[%emt 0:00:44]} Bf3 {[%emt 0:03:30]} 24. Rd2 {[%emt 0:00:15]} Rd8 {[%emt 0:00:30]} 25. Rxd8+ {[%emt 0:00:30]} Kxd8 {[%emt 0:00:00]} 26. Ne1 {[%emt 0:01:29]} Be2 {[%emt 0:00:00]} 27. Rc1 {[%emt 0:01:50]} b6 {[%emt 0:02:30]} 28. Rc2 {[%emt 0:00:07]} Ba6 {[%emt 0:00:30]} 29. Rd2+ {[%emt 0:02:38]} Kc7 {[%emt 0:00:30]} 30. Rd5 {[%emt 0:02:53]} Rf7 {[%emt 0:01:30]} 31. f4 {[%emt 0:00:12]} Bb7 {[%emt 0:00:30]} 32. Rd2 {[%emt 0:00:07]} a5 {[%emt 0:01:30]} 33. Kf2 {[%emt 0:00:11]} h5 {[%emt 0:00:30]} 34. Nf3 {[%emt 0:00:26]} Rf8 {[%emt 0:05:30]} 35. Ne5 {[%emt 0:00:16]} Bc8 {[%emt 0:00:30]} 36. Kf3 {[%emt 0:01:12]} Bb7+ {[%emt 0:00:30]} 37. Ke2 {[%emt 0:00:30]} Bc8 {[%emt 0:00:30]} 38. Nf3 {[%emt 0:03:00]} Bd7 {[%emt 0:00:30]} 39. Ng5 {[%emt 0:00:29]} a4 {[%emt 0:01:30]} 40. Kd3 {[%emt 0:00:00]} axb3 {[%emt 0:00:30]} 41. axb3 {[%emt 0:02:35]} Ra8 {[%emt 0:03:30]} 42. Kc3 {[%emt 0:16:18]} Ra1 {[%emt 0:01:30]} 43. Nh7 {[%emt 0:00:23]} Be6 {[%emt 0:00:30]} 44. Nf6 {[%emt 0:00:11]} Rb1 {[%emt 0:01:30]} 45. Rb2 {[%emt 0:00:44]} Re1 {[%emt 0:15:30]} 46. Kd3 {[%emt 0:01:32]} Rh1 {[%emt 0:05:30]} 47. g4 {[%emt 0:03:32]} hxg4 {[%emt 0:02:30]} 48. hxg4 {[%emt 0:00:35]} fxg4 {[%emt 0:00:30]} 49. Ke4 $1 {[%emt 0:02:47]} g3 {[%emt 0:01:30]} 50. Rg2 {[%emt 0:01:35]} Rh3 {[%emt 0:01:30]} 51. b4 {[%emt 0:01:10]} cxb4 {[%emt 0:16:57]} 52. Nd5+ {[%emt 0:00:05]} Kd6 {[%emt 0:00:20]} 53. Nxb4 $11 {[%emt 0:00:28]} Bc8 {[%emt 0:02:09]} 54. Kf3 {[%emt 0:02:38]} Bb7+ {[%emt 0:02:01]} 55. e4 {[%emt 0:00:04]} Kc5 {[%emt 0:00:23]} 56. Nd5 {[%emt 0:00:20]} Bxd5 {[%emt 0:00:26]} 1/2-1/2

[Event "33rd ECCC Open 2017"]
[Site "Antalya"]
[Date "2017.10.12"]
[Round "5"]
[White "Bednarich, Jan"]
[Black "Gantner, Matthias"]
[Result "0-1"]
[ECO "B52"]
[WhiteElo "2224"]
[BlackElo "2324"]
[Annotator "NA"]
[PlyCount "70"]
[EventType "team-tourn"]
[EventCountry "TUR"]
[SourceTitle "playchess.com"]
[Source "ChessBase"]
[SourceQuality "1"]
[WhiteTeam "Bonnevoie"]
[BlackTeam "White Rose"]
[TimeControl "40/5400+30:1800+30"]

1. e4 {[%emt 0:00:30]} c5 {[%emt 0:01:00]} 2. Nf3 {[%emt 0:00:30]} d6 {[%emt 0:00:30]} 3. Bb5+ {[%emt 0:02:30]} Bd7 {[%emt 0:00:30]} 4. Bxd7+ {[%emt 0:01:30]} Qxd7 {[%emt 0:00:30]} 5. O-O {[%emt 0:00:00]} Nc6 {[%emt 0:01:30]} 6. Re1 {[%emt 0:00:00]} Nf6 {[%emt 0:02:30]} 7. c3 {[%emt 0:00:30]} e6 {[%emt 0:05:30]} 8. d4 {[%emt 0:00:00]} d5 {[%emt 0:06:30]} 9. e5 {[%emt 0:02:00]} Ne4 {[%emt 0:04:30]} 10. Nbd2 {[%emt 0:00:00]} Nxd2 {[%emt 0:00:30]} 11. Bxd2 {[%emt 0:00:00]} cxd4 {[%emt 0:01:30]} 12. cxd4 {[%emt 0:00:00]} Be7 {[%emt 0:00:30]} 13. Re3 {[%emt 0:01:00] B52: Sizilianisch (Rossolimo-Variante)} (13. h4 Rc8 14. h5 h6 15. Re3 O-O 16. Qe2 Qc7 17. Bc3 Bb4 18. Nh2 Bxc3 19. bxc3 Ne7 20. g4 Qa5 {½-½ (31) Bartel,M (2646)-Dragun,K (2609) Trzcianka 2016}) 13... O-O {[%emt 0:09:30]} 14. Rd3 {[%emt 0:01:30]} Rac8 {[%emt 0:13:30]} 15. Ng5 {[%emt 0:03:30]} f6 $146 {[%emt 0:05:30]} ({Vorgänger:} 15... h6 16. Nh3 f6 17. exf6 Bxf6 18. Qg4 Kh7 19. Re1 Rce8 20. Bc3 Qf7 {½-½ (35) Lukovic,V (1898)-Andersen,M (2070) Sibenik 2007}) 16. exf6 {[%emt 0:08:30]} Bxf6 {[%emt 0:00:30]} 17. Nf3 {[%emt 0:15:30]} g6 {[%emt 0:09:30]} 18. Qe2 {[%emt 0:05:30]} Bg7 {[%emt 0:03:30]} 19. Bc3 {[%emt 0:09:30]} Nd8 {[%emt 0:07:30]} 20. Re1 {[%emt 0:00:30]} Qa4 {[%emt 0:05:30]} 21. a3 {[%emt 0:01:30]} Rc6 $14 {[%emt 0:01:55]} 22. Bb4 {[%emt 0:09:30]} Rf4 {[%emt 0:03:41]} 23. Re3 {[%emt 0:19:22]} Qc2 {[%emt 0:06:39]} 24. g3 {[%emt 0:05:16]} Rf5 {[%emt 0:02:36]} 25. Be7 {[%emt 0:02:49]} Qxe2 {[%emt 0:00:30]} 26. R1xe2 {[%emt 0:00:00]} Rc1+ {[%emt 0:00:09]} 27. Kg2 {[%emt 0:00:00]} Nc6 {[%emt 0:00:00]} 28. Bc5 {[%emt 0:02:47]} e5 {[%emt 0:02:37]} 29. g4 {[%emt 0:01:07]} Rf7 {[%emt 0:01:44]} 30. Bd6 {[%emt 0:00:38]} Rxf3 {[%emt 0:01:31]} 31. Rxf3 {[%emt 0:03:01]} Nxd4 {[%emt 0:00:04]} 32. Rd2 {[%emt 0:04:06]} Rg1+ {[%emt 0:00:25]} 33. Kh3 {[%emt 0:00:58]} Nxf3 {[%emt 0:00:30]} 34. Rxd5 {[%emt 0:00:00]} h5 {[%emt 0:00:28]} 35. gxh5 {[%emt 0:00:21]} g5 {[%emt 0:00:05]} 0-1